Workbook

Sheet nota integrativa
A1: Comune di RANZANICO
A21: NOTA INTEGRATIVA AL BILANCIO DI
A22: PREVISIONE 2016-2018
A33: Premessa
A36: La presente nota integrativa è prevista dal punto 9.11 del “Principio contabile applicato concernente la programmazione del bilancio” allegato al D. Lgs. 118 del 23.06.2011, come modificato dal D. Lgs. n. 126 del 10.08.2014.
A37: Il contenuto della nota integrativa è determinato dal principio sopra citato ed ha la funzione di integrare i dati quantitativi esposti negli schemi di bilancio al fine di rendere più chiara e significativa la lettura dello stesso.
A38: Il presente documento ha essenzialmente tre funzioni:
A39: • Analitico-descrittiva, che dà l’illustrazione di dati che per la loro sinteticità non sono in grado di essere pienamente compresi;
A40: • Informativa, che prevede l’indicazione di ulteriori dati che non possono essere inseriti nei documenti quantitativo-contabili;
A41: • Esplicativa, che si traduce nell’evidenziazione e nella motivazione delle ipotesi assunte e dei criteri di valutazione adottati e che sono alla base della determinazione dei valori di bilancio.
A43: 1. Criteri di valutazione adottati per la formulazione delle previsioni, con particolare riferimento agli stanziamenti riguardanti gli accantonamenti per le spese potenziali e al fondo crediti di dubbia esigibilità, dando illustrazione dei crediti per i quali non è previsto l’accantonamento a tale fondo.
A45: Le previsioni del bilancio sono state effettuate in base ai principi allegati al D.Lgs. 118/2011 ed ai risultati delle precedenti gestioni di bilancio.
A46: Non sono stati effettuati accantonamenti per spese potenziali poiché, al momento della stesura del bilancio, non si ravvisano segnali o indicazioni che possano far ritenere effettiva questa eventualità. Il fondo crediti di dubbia esigibilità è stato costituito accantonando una quota delle entrate accertate per competenza ed oggetto di analisi secondo le disposizioni dei nuovi principi contabili.
A47: Oltre l’accantonamento previsto per l’indennità di fine mandato del Sindaco, istituito per ciascun anno del triennio considerato secondo il principio cantabile applicato concernente la contabilità finanziaria di cui all’all.4/2 del D.Lgs.118/2001, non si è ravvisata la necessità di istituire ulteriori accantonamenti in sede di bilancio di previsione , anche per evitare di distrarre risorse alla gestione. Di seguito sono analizzate le principali voci di entrata:
A49: RIEPILOGO GENERALE ENTRATE PER TITOLI
A50: TITOLO | C50: DENOMINAZIONE
F51: PREV.DEF. o REND. | G51: PREVISIONI ANNO 2016 | H51: PREVISIONI ANNO 2017 | I51: PREVISIONI ANNO 2018
C52: Fondo pluriennale vincolato per spese correnti | F52: =[5]PAREGGIO!B4 -> 22419.14 | G52: =[5]PAREGGIO!C4 -> 21426.62 | H52: =[5]PAREGGIO!D4 -> 0 | I52: =[5]PAREGGIO!E4 -> 0
C53: Fondo pluriennale vincolato per spese in conto capitale | F53: =[5]PAREGGIO!B5 -> 76819.86 | G53: =[5]PAREGGIO!C5 -> 373709.63 | H53: =[5]PAREGGIO!D5 -> 0 | I53: =[5]PAREGGIO!E5 -> 0
C54: Utilizzo avanzo di Amministrazione | F54: =[5]PAREGGIO!B3 -> 0 | G54: =[5]PAREGGIO!C3 -> 0 | H54: =[5]PAREGGIO!D3 -> 0 | I54: =[5]PAREGGIO!E3 -> 0
C55: - di cui avanzo vincolato utilizzato anticipatamente | F55: 0 | G55: 0 | H55: 0 | I55: 0
A56: 1 | C56: Entrate correnti di natura tributaria, contributiva e perequativa | F56: =[5]PAREGGIO!B7 -> 855600 | G56: =[5]PAREGGIO!C7 -> 831900 | H56: =[5]PAREGGIO!D7 -> 817900 | I56: =[5]PAREGGIO!E7 -> 820900
A57: 2 | C57: Trasferimenti correnti | F57: =[5]PAREGGIO!B8 -> 15200 | G57: =[5]PAREGGIO!C8 -> 19700 | H57: =[5]PAREGGIO!D8 -> 16200 | I57: =[5]PAREGGIO!E8 -> 16200
A58: 3 | C58: Entrate extratributarie | F58: =[5]PAREGGIO!B9 -> 160450 | G58: =[5]PAREGGIO!C9 -> 149635 | H58: =[5]PAREGGIO!D9 -> 137895 | I58: =[5]PAREGGIO!E9 -> 137390
A59: 4 | C59: Entrate in conto capitale | F59: =[5]PAREGGIO!B10 -> 607400 | G59: =[5]PAREGGIO!C10 -> 524000 | H59: =[5]PAREGGIO!D10 -> 175000 | I59: =[5]PAREGGIO!E10 -> 85000
A60: 5 | C60: Entrate da riduzione di attività finanziarie | F60: =[5]PAREGGIO!B11 -> 0 | G60: =[5]PAREGGIO!C11 -> 0 | H60: =[5]PAREGGIO!D11 -> 0 | I60: =[5]PAREGGIO!E11 -> 0
A61: 6 | C61: Accensione prestiti | F61: =[5]PAREGGIO!B12 -> 0 | G61: =[5]PAREGGIO!C12 -> 0 | H61: =[5]PAREGGIO!D12 -> 0 | I61: =[5]PAREGGIO!E12 -> 0
A62: 7 | C62: Anticipazioni da istituto tesoriere/cassiere | F62: =[5]PAREGGIO!B13 -> 0 | G62: =[5]PAREGGIO!C13 -> 0 | H62: =[5]PAREGGIO!D13 -> 0 | I62: =[5]PAREGGIO!E13 -> 0
A63: 9 | C63: Entrate per conto terzi e partite di giro | F63: =[5]PAREGGIO!B14 -> 413630 | G63: =[5]PAREGGIO!C14 -> 410650 | H63: =[5]PAREGGIO!D14 -> 410750 | I63: =[5]PAREGGIO!E14 -> 410750
C64: totale generale delle entrate | F64: =SUM(F52:F63) -> 2151519 | G64: =SUM(G52:G63) -> 2331021.25 | H64: =SUM(H52:H63) -> 1557745 | I64: =SUM(I52:I63) -> 1470240
A67: Titolo I: Entrate correnti di natura tributaria, contributiva e perequativa.
A69: Imposta municipale propria (Imu):
A70: L’imposta municipale propria è confermata nella misura approvata per l’esercizio 2015 con le seguenti aliquote:
A71: • aliquota 0,40% per l’unità immobiliare adibita ad abitazione principale del soggetto passivo classificata nelle categorie catastali A/1, A/8 e A/9 nonché per le relative pertinenze, per unità immobiliari di cui siano proprietari o usufruttuari anziani o disabili che acquisiscono la residenza in istituti di ricovero o sanitari a seguito di ricovero permanente, purchè la stessa non sia data in locazione, per unità immobiliari possedute dai cittadini italiani residenti all’estero a titolo di proprietà o di usufrutto in Italia, a condizione che non risulti locata;
A72: • aliquota 10,6% per aree edificabili;
A73: • aliquota 10,6% tutti gli altri fabbricati;
A75: Addizionale comunale all’ irpef.
A76: E’ confermata nella misura vigente nel 2015 (0,4%)
A78: Tari
A79: L’amministrazione comunale intende apportare una leggera flessione delle tariffe in virtù dei minori costi derivati dall'incremento della raccolta differenziata. Per i dettagli si rimanda al Piano Finanziario TARI 2016
A82: Titolo II – Trasferimenti correnti.
A84: I trasferimenti correnti riguardano le quote di compartecipazione alle spese correnti sostenute dall'ente da parte principalmente di altri enti della pubblica amministrazione quali Stato, Regioni , Comuni e Province oltre che per funzioni proprie per fuznioni delegate e nel triennio non si prevedono scostamenti rilevanti rispetto al trend-storico.
A86: Titolo III - Entrate extratributarie
A88: La quantificazione di queste entrate fa riferimento a leggi e regolamenti, oltre che all’andamento degli esercizi precedenti. Le voci principali sono:
A89: • Diritti di segreteria;
A90: • Sanzioni amministrative per violazione al codice della strada;
A91: • I rimborsi scolastici (concorso spesa al trasporto scolastico);
A92: • Gli affitti attivi;
A93: • I rimborsi per i servizi cimiteriali.
A95: Titolo IV – Entrate in conto capitale.
A97: Questa tipologia di entrata finanzia le spese di investimento e comprende:
G98: 2016 | H98: 2017 | I98: 2018
A99: PROVENTI DA CONCESSIONI EDILIZIE URBANISTICHE | G99: =[5]ENTRATA!G129 -> 80000 | H99: =[5]ENTRATA!J129 -> 80000 | I99: =[5]ENTRATA!K129 -> 80000
A100: =[5]ENTRATA!E120 -> CONTRIBUTO STATALE PER 3LOTTO RECUPERO PALAZZO RE/MERIS (6000 campanili) | G100: =[5]ENTRATA!G120 -> 297000 | H100: =[5]ENTRATA!J120 -> 90000 | I100: =[5]ENTRATA!K120 -> 0
A101: =[5]ENTRATA!E121 -> CONTRIBUTO REGIONALE "PROGETTO SICUREZZA" IN GEST.ASSOCIATA | G101: =[5]ENTRATA!G121 -> 107000 | H101: =[5]ENTRATA!J121 -> 0 | I101: =[5]ENTRATA!K121 -> 0
A102: =[5]ENTRATA!E122 -> CONCORSO DA COMUNI ASSOCIATI PER "PROGETTO SICUREZZA" | G102: =[5]ENTRATA!G122 -> 35000 | H102: =[5]ENTRATA!J122 -> 0 | I102: =[5]ENTRATA!K122 -> 0
A103: =[5]ENTRATA!E134 -> FONDO AREE VERDI ex L.R. 12/2005 e s.m.i. | G103: =[5]ENTRATA!G134 -> 5000 | H103: =[5]ENTRATA!J134 -> 5000 | I103: =[5]ENTRATA!K134 -> 5000
A105: Titolo V – Entrate da riduzione di attività finanziarie.
A107: Nessuna entrata prevista.
A109: Titolo VI – Accensione di prestiti.
A111: Nessuna entrata prevista.
A113: Titolo VII – Anticipazione da Istituto tesoriere/cassiere.
A115: Data l'ottima liquidità e la gestione ottimale dei flussi di cassa, non è previsto il ricorso all'anticipazione di tesoreria.
A117: Titolo XI – Entrate per conto terzi e partite di giro.
A119: Di pari importo in entrata e in spesa esse comprendono le per partite di giro ei servizi per conto terzi
A121: Riepilogo generale delle spese per titoli
A123: SPESA
A125: TITOLO | C125: DENOMINAZIONE | F125: PREV.DEF. o REND. | G125: PREVISIONI ANNO 2016 | H125: PREVISIONI ANNO 2017 | I125: PREVISIONI ANNO 2018
C127: DISAVANZO DI AMMINISTRAZIONE | F127: 0 | G127: 0,00 | H127: 0,00 | I127: 0,00
A128: 1 | C128: SPESE CORRENTI | D128: previsione di competenza | F128: =[5]PAREGGIO!B19 -> 1011169.14 | G128: =[5]PAREGGIO!C19 -> 986061.62 | H128: =[5]PAREGGIO!D19 -> 941995 | I128: =[5]PAREGGIO!E19 -> 943190
D129: di cui fondo pluriennale vincolato | F129: =[5]PAREGGIO!B4 -> 22419.14 | G129: =[5]PAREGGIO!C4 -> 21426.62 | H129: =[5]PAREGGIO!D4 -> 0 | I129: =[5]PAREGGIO!E4 -> 0
A131: 2 | C131: SPESE IN CONTO CAPITALE | D131: previsione di competenza | F131: =[5]PAREGGIO!B20 -> 684219.86 | G131: =[5]PAREGGIO!C20 -> 897709.63 | H131: =[5]PAREGGIO!D20 -> 175000 | I131: =[5]PAREGGIO!E20 -> 85000
D132: di cui fondo pluriennale vincolato | F132: =[5]PAREGGIO!B5 -> 76819.86 | G132: =[5]PAREGGIO!C5 -> 373709.63 | H132: =[5]PAREGGIO!D5 -> 0 | I132: =[5]PAREGGIO!E5 -> 0
A134: 3 | C134: SPESE PER INCREMENTO DI ATT. FINANZIARIE | D134: previsione di competenza | F134: =[5]PAREGGIO!B21 -> 0 | G134: =[5]PAREGGIO!C21 -> 0 | H134: =[5]PAREGGIO!D21 -> 0 | I134: =[5]PAREGGIO!E21 -> 0
D135: di cui fondo pluriennale vincolato | F135: 0 | G135: 0 | H135: 0 | I135: 0
A137: 4 | C137: RIMBORSO DI PRESTITI | D137: previsione di competenza | F137: =[5]PAREGGIO!B22 -> 42500 | G137: =[5]PAREGGIO!C22 -> 36600 | H137: =[5]PAREGGIO!D22 -> 30000 | I137: =[5]PAREGGIO!E22 -> 31300
D138: di cui fondo pluriennale vincolato | F138: 0 | G138: 0,00 | H138: (0,00) | I138: (0,00)
A140: 5 | C140: CHIUSURA ANTICIPAZIONI DA ISTITUTO TESORIERE/ CASSIERE | D140: previsione di competenza | F140: =[5]PAREGGIO!B23 -> 0 | G140: =[5]PAREGGIO!C23 -> 0 | H140: =[5]PAREGGIO!D23 -> 0 | I140: =[5]PAREGGIO!E23 -> 0
D141: di cui fondo pluriennale vincolato | F141: (0,00) | G141: 0,00 | H141: (0,00) | I141: (0,00)
A143: 7 | C143: SPESE PER CONTO TERZI E PARTITE DI GIRO | D143: previsione di competenza | F143: =[5]PAREGGIO!B25 -> 413630 | G143: =[5]PAREGGIO!C25 -> 410650 | H143: =[5]PAREGGIO!D25 -> 410750 | I143: =[5]PAREGGIO!E25 -> 410750
D144: di cui fondo pluriennale vincolato | F144: (0,00) | G144: 0,00 | H144: (0,00) | I144: (0,00)
C146: TOTALE TITOLI | D146: previsione di competenza | F146: =+F128+F131+F134+F137+F140+F143 -> 2151519 | G146: =+G128+G131+G134+G137+G140+G143 -> 2331021.25 | H146: =+H128+H131+H134+H137+H140+H143 -> 1557745 | I146: =+I128+I131+I134+I137+I140+I143 -> 1470240
A149: TITOLO I – Spese correnti
A151: Di seguito sono riepilogate le principali voci di spesa corrente suddivise in macroaggregati:
C153: Macroaggregati di spesa | F153: Anno 2016 | G153: Anno 2017 | H153: Anno 2018
C154: Redditi da lavoro dipendente | F154: =[5]SPESA!J39+[5]SPESA!J117+[5]SPESA!J139+[5]SPESA!J169+[5]SPESA!J303 -> 268989.72 | G154: =[5]SPESA!K39+[5]SPESA!K117+[5]SPESA!K139+[5]SPESA!K169+[5]SPESA!K303 -> 246650 | H154: =[5]SPESA!L39+[5]SPESA!L117+[5]SPESA!L139+[5]SPESA!L169+[5]SPESA!L303 -> 246400
C155: Imposte e tasse a carico dell'ente | F155: =[5]SPESA!J13+[5]SPESA!J43+[5]SPESA!J100+[5]SPESA!J121+[5]SPESA!J143+[5]SPESA!J173+[5]SPESA!J307 -> 19800 | G155: =[5]SPESA!K13+[5]SPESA!K43+[5]SPESA!K100+[5]SPESA!K121+[5]SPESA!K143+[5]SPESA!K173+[5]SPESA!K307 -> 19300 | H155: =[5]SPESA!L13+[5]SPESA!L43+[5]SPESA!L100+[5]SPESA!L121+[5]SPESA!L143+[5]SPESA!L173+[5]SPESA!L307 -> 19300
C156: Acquisto di beni e servizi | F156: =+[5]SPESA!J20+[5]SPESA!J63+[5]SPESA!J80+[5]SPESA!J90+[5]SPESA!J106+[5]SPESA!J126+[5]SPESA!J148+[5]SPESA!J181+[5]SPESA!J191+[5]SPESA!J201+[5]SPESA!J237+[5]SPESA!J253+[5]SPESA!J280+[5]SPESA!J292+[5]SPESA!J319+[5]SPESA!J334+[5]SPESA!J360+[5]SPESA!J383+[5]SPESA!J407 -> 338846.9 | G156: =+[5]SPESA!K20+[5]SPESA!K63+[5]SPESA!K80+[5]SPESA!K90+[5]SPESA!K106+[5]SPESA!K126+[5]SPESA!K148+[5]SPESA!K181+[5]SPESA!K191+[5]SPESA!K201+[5]SPESA!K237+[5]SPESA!K253+[5]SPESA!K280+[5]SPESA!K292+[5]SPESA!K319+[5]SPESA!K334+[5]SPESA!K360+[5]SPESA!K383+[5]SPESA!K407 -> 318880 | H156: =+[5]SPESA!L20+[5]SPESA!L63+[5]SPESA!L80+[5]SPESA!L90+[5]SPESA!L106+[5]SPESA!L126+[5]SPESA!L148+[5]SPESA!L181+[5]SPESA!L191+[5]SPESA!L201+[5]SPESA!L237+[5]SPESA!L253+[5]SPESA!L280+[5]SPESA!L292+[5]SPESA!L319+[5]SPESA!L334+[5]SPESA!L360+[5]SPESA!L383+[5]SPESA!L407 -> 318500 | K156: 338846 | L156: =F156-K156 -> 0.9 | M156: 318880 | N156: =G156-M156 -> 0 | O156: 318500 | P156: =H156-O156 -> 0
C157: Trasferimenti correnti | F157: =+[5]SPESA!J24+[5]SPESA!J69+[5]SPESA!J130+[5]SPESA!J152+[5]SPESA!J158+[5]SPESA!J205+[5]SPESA!J218+[5]SPESA!J224+[5]SPESA!J242+[5]SPESA!J257+[5]SPESA!J269+[5]SPESA!J284+[5]SPESA!J338+[5]SPESA!J354+[5]SPESA!J364+[5]SPESA!J377+[5]SPESA!J387+[5]SPESA!J393+[5]SPESA!J399+[5]SPESA!J370 -> 292790 | G157: =+[5]SPESA!K24+[5]SPESA!K69+[5]SPESA!K130+[5]SPESA!K152+[5]SPESA!K158+[5]SPESA!K205+[5]SPESA!K218+[5]SPESA!K224+[5]SPESA!K242+[5]SPESA!K257+[5]SPESA!K269+[5]SPESA!K284+[5]SPESA!K338+[5]SPESA!K354+[5]SPESA!K364+[5]SPESA!K377+[5]SPESA!K387+[5]SPESA!K393+[5]SPESA!K399+[5]SPESA!K370 -> 290340 | H157: =+[5]SPESA!L24+[5]SPESA!L69+[5]SPESA!L130+[5]SPESA!L152+[5]SPESA!L158+[5]SPESA!L205+[5]SPESA!L218+[5]SPESA!L224+[5]SPESA!L242+[5]SPESA!L257+[5]SPESA!L269+[5]SPESA!L284+[5]SPESA!L338+[5]SPESA!L354+[5]SPESA!L364+[5]SPESA!L377+[5]SPESA!L387+[5]SPESA!L393+[5]SPESA!L399+[5]SPESA!L370 -> 293240
C158: Interessi passivi | F158: =[5]SPESA!J436 -> 25460 | G158: =[5]SPESA!K436 -> 23850 | H158: =[5]SPESA!L436 -> 22275
C159: Rimborsi e poste correttive delle entrate | F159: =+[5]SPESA!J94 -> 4000 | G159: =+[5]SPESA!K94 -> 3500 | H159: =+[5]SPESA!L94 -> 3500
C160: Altre spese correnti | F160: =+[5]SPESA!J29+[5]SPESA!J73+[5]SPESA!J84+[5]SPESA!J110+[5]SPESA!J185+[5]SPESA!J323+[5]SPESA!J342+[5]SPESA!J416+[5]SPESA!J422 -> 36175 | G160: =+[5]SPESA!K29+[5]SPESA!K73+[5]SPESA!K84+[5]SPESA!K110+[5]SPESA!K185+[5]SPESA!K323+[5]SPESA!K342+[5]SPESA!K416+[5]SPESA!K422 -> 39475 | H160: =+[5]SPESA!L29+[5]SPESA!L73+[5]SPESA!L84+[5]SPESA!L110+[5]SPESA!L185+[5]SPESA!L323+[5]SPESA!L342+[5]SPESA!L416+[5]SPESA!L422 -> 39975
C161: Totale titolo I | D161: 2697924 | E161: 2514246 | F161: =SUM(F154:F160) -> 986061.62 | G161: =SUM(G154:G160) -> 941995 | H161: =SUM(H154:H160) -> 943190
A163: Nella voce “redditi da lavoro dipendente” sono compresi anche gli oneri previdenziali ed assistenziali a carico dell’ente. Tale macroaggregato è stato quantificato per il biennio successivo, proiettando la situazione attuale.
A165: Tra le “imposte e tasse a carico dell’ente” la somma maggiore è rappresentata dall’Irap a carico dell’ente.
A167: Gli “acquisti dei beni e servizi” comprendono le previsioni di spesa necessarie a garantire il regolare funzionamento e la buona gestione dei servizi.
A169: Tra i “trasferimenti correnti” sono classificati i contributi che l’amministrazione riconosce annualmente a terzi, siano essi privati cittadini o associazioni oltre alle quote per i servizi in gestione associata erogate al Consorzio Servizi Val
A171: Gli “interessi passivi”, sono rappresentati da interessi passivi su mutui in ammortamento nel trienni considerato.
A173: Tra i “rimborsi e le poste correttive delle entrate” sono compresi gli sgravi e le restituzioni di tributi.
A175: Le “altre spese correnti” comprendono tutte quelle voci che non trovano collocazione nei precedenti macroaggregati, quali le assicurazioni, la liquidazione dell’iva a debito, il fondo crediti di dubbia esigibilità e il fondo di riserva.
A177: Titolo II – Spese in conto capitale.
C179: Macroaggregati di spesa | F179: Anno 2016 | G179: Anno 2017 | H179: Anno 2018
C180: Investimenti fissi lordi e acquisto di terreni | F180: =[5]SPESA!J452+[5]SPESA!J459+[5]SPESA!J471+[5]SPESA!J495+[5]SPESA!J505+[5]SPESA!J515+[5]SPESA!J525+[5]SPESA!J535+[5]SPESA!J545+[5]SPESA!J557+[5]SPESA!J568 -> 893709.63 | G180: =[5]SPESA!K452+[5]SPESA!K459+[5]SPESA!K471+[5]SPESA!K495+[5]SPESA!K505+[5]SPESA!K515+[5]SPESA!K525+[5]SPESA!K535+[5]SPESA!K545+[5]SPESA!K557+[5]SPESA!K568 -> 171000 | H180: =[5]SPESA!L452+[5]SPESA!L459+[5]SPESA!L471+[5]SPESA!L495+[5]SPESA!L505+[5]SPESA!L515+[5]SPESA!L525+[5]SPESA!L535+[5]SPESA!L545+[5]SPESA!L557+[5]SPESA!L568 -> 81000
C181: Contributi agli investimenti | F181: =+[5]SPESA!J482+[5]SPESA!J551 -> 4000 | G181: =+[5]SPESA!K482+[5]SPESA!K551 -> 4000 | H181: =+[5]SPESA!L482+[5]SPESA!L551 -> 4000
C182: Altri trasferimenti in conto capitale
C183: Altre spese in conto capitale
C184: Totale titolo II | F184: =SUM(F180:F183) -> 897709.63 | G184: =SUM(G180:G183) -> 175000 | H184: =SUM(H180:H183) -> 85000
A186: Nel macroaggregato “Investimenti fissi lordi e acquisto di terreni” sono classificate le spese relative alla realizzazione di nuove opere e agli interventi di manutenzione straordinaria
A188: Titolo III– Spese per incremento di attività finanziarie
A190: In bilancio non emergono valori per questo titolo
A192: Titolo IV – Rimborso di prestiti
C194: Macroaggregati di spesa | F194: Anno 2016 | G194: Anno 2017 | H194: Anno 2018
C195: Rimborso prestiti a breve termine
C196: Rimborso mutui ed altri finanziamenti a medio lungo termine | F196: =[5]SPESA!J591 -> 36600 | G196: =[5]SPESA!K591 -> 30000 | H196: =[5]SPESA!L591 -> 31300
E197: Totale titolo IV | F197: =SUM(F195:F196) -> 36600 | G197: =SUM(G195:G196) -> 30000 | H197: =SUM(H195:H196) -> 31300
A199: Nel macroaggregato “Rimborso mutui ed altri finanziamenti a medio lungo termine” sono comprese le quote capitale dei mutui in ammortamento nel triennio considerato e la quota capitale del prestito concesso da Regione Lombardia.
A201: Titolo V – Restituzione anticipazione istituto tesoriere/cassiere
A203: In questo titolo trova iscrizione la restituzione dell’anticipazione di tesoreria corrispondente al titolo VII di entrata.
C205: Macroaggregati di spesa | F205: Anno 2016 | G205: Anno 2017 | H205: Anno 2018
C206: Restituzione anticipazione di cassa | F206: =[5]SPESA!J606 -> 0 | G206: =[5]SPESA!K606 -> 0 | H206: =[5]SPESA!L606 -> 0
C207: Totale titolo V | F207: =SUM(F206) -> 0 | G207: =SUM(G206) -> 0 | H207: =SUM(H206) -> 0
A209: Titolo VII – Spese per conto terzi e partite di giro.
C211: Macroaggregati di spesa | F211: Anno 2016 | G211: Anno 2017 | H211: Anno 2018
C212: Uscite per partite di giro | F212: =[5]SPESA!J630 -> 112500 | G212: =[5]SPESA!K630 -> 112500 | H212: =[5]SPESA!L630 -> 112500
C213: Uscite per conto terzi | F213: =[5]SPESA!J641 -> 298150 | G213: =[5]SPESA!K641 -> 298250 | H213: =[5]SPESA!L641 -> 298250
C214: Totale titolo VII | F214: =SUM(F212:F213) -> 410650 | G214: =SUM(G212:G213) -> 410750 | H214: =SUM(H212:H213) -> 410750
A216: Le spese per conto di terzi e le partite di giro sono state previste a pareggio con le relative entrate di cui al titolo IX.
A218: 1) Fondo crediti di dubbia esigibilità e fondo di riserva di cassa
A220: La determinazione dell’accantonamento al fondo crediti di dubbia esigibilità è stata preceduta da un’attenta analisi delle entrate dell’ente per l’individuazione delle tipologie stanziate che possono dar luogo alla formazione di crediti di dubbia e difficile esazione. Le poste di entrata ritenute ricadenti in dette tipologie sono:
F222: Anno 2016 | G222: Anno 2017 | H222: Anno 2018
C223: - Recupero evasione tributaria | F223: =[5]FCDE!L7 -> 1744.190594 | G223: =[5]FCDE!M7 -> 2020.786656 | H223: =[5]FCDE!N7 -> 2453.812368
C224: - Tassa Rifiuti | F224: =[5]FCDE!L14 -> 9940.837178 | G224: =[5]FCDE!M14 -> 11631.06598 | H224: =[5]FCDE!N14 -> 14167.71136
C225: -Sanzioni Amministrative | F225: =[5]FCDE!L21 -> 1327.502488 | G225: =[5]FCDE!M21 -> 1689.548621 | H225: =[5]FCDE!N21 -> 2051.594754
C226: -Affitti da beni immobili | F226: =[5]FCDE!L27 -> 905.8867179 | G226: =[5]FCDE!M27 -> 1152.946732 | H226: =[5]FCDE!N27 -> 1400.006746
C227: Totale FCDE minimo da stanziare | F227: =SUM(F223:F226) -> 13918.41698 | G227: =SUM(G223:G226) -> 16494.34799 | H227: 20073.12523
C228: Totale FCDE previsto nel bilancio | F228: =[5]SPESA!J421 -> 13920 | G228: =[5]SPESA!K421 -> 16500 | H228: =[5]SPESA!L421 -> 20100
A230: Sono state poi confrontate le varie metodologie di calcolo previste dai principi contabili e individuata quella della media semplice, in base al principio della prudenza, trovando il complemento a 100 della percentuale trovata, si è poi provveduto al calcolo dell’accantonamento obbligatorio per ogni singolo anno
A231: E' stanziata nel capitolo relativo al fondo di riserva ordinario e del fondo crediti di dubbia esigibilità la previsione di cassa e costituisce il fondo di riserva per le autorizzazioni di cassa ex art. 166 del TUEL.
A233: 2) Elenco analitico degli utilizzi delle quote vincolate e accantonate del risultato di amministrazione presunto, distinguendo i vincoli derivanti dalla legge e dai principi contabili, dai trasferimenti, da mutui e altri finanziamenti, vincoli formalmente attribuiti dall'ente.
A235: Con la predisposizione del bilancio di previsione è necessario procedere alla determinazione del risultato di amministrazione presunto che consiste in una previsione ragionevole del risultato di amministrazione dell’esercizio precedente, formulata in base alla situazione dei conti alla data di elaborazione del bilancio di previsione.
A236: Al presunto risultato di amministrazione sono stati applicati i vincoli derivanti dalla gestione precedente.
A237: Si riporta la tabella dimostrativa del risultato di amministrazione presunto allegata al bilancio:
A239: Determinazione del risultato di amministrazione presunto al 31/12
B241: 1) Determinazione del risultato di amministrazione presunto al 31/12/2015:
B242: + Risultato di amministrazione iniziale 2015 | I242: =288407.95-99239 -> 189168.95
B243: + Fondo pluriennale vincolato iniziale dell'esercizio 2015 | I243: =22419.14+76819.86 -> 99239
B244: + Entrate già accertate nell'esercizio 2015 | I244: 1704072.69
B245: - Uscite già impegnate nell'esercizio 2015 | I245: 1370485.21
B246: +/- Variazione dei residui attivi già verificatesi nel 2015 | I246: 16227.62
B247: -/+ Variazione dei residui passivi già verificatesi nel 2015 | I247: -4641.68
B248: = Risultato di amministrazione dell'esercizio 2015 e alla data di redazione del bilancio dell'anno 2016 | I248: =I244-I245+I246-I247+I242+I243 -> 642864.73
B249: + Entrate presunte per il restante periodo dell`esercizio 2015 | I249: 0
B250: - Uscite presunte per il restante periodo dell`esercizio 2015 | I250: 0
B251: +/- Variazioni dei residui attivi, presunte per il restante periodo dell`esercizio 2015 | I251: 0
B252: -/+ Variazioni dei residui passivi, presunte per il restante periodo dell`esercizio 2015 | I252: 0
B253: - Fondo pluriennale vincolato finale presunto dell'esercizio 2015 | I253: =[5]PAREGGIO!C4+[5]PAREGGIO!C5 -> 395136.25
B254: A) Risultato di amministrazione presunto al 31/12/2015 | I254: =I248+I249-I250+I251-I252-I253 -> 247728.48
B255: 2) Composizione del risultato di amministrazione presunto al 31/12/2015:
B256: Parte accantonata
C257: Fondo crediti di dubbia esigibilità al 31/12/2015 | I257: 13800
C258: altri accantonamenti | I258: 2109.12
H259: B) Totale parte accantonata | I259: =SUM(I257:I258) -> 15909.12
B260: Parte vincolata
C261: Vincoli derivanti da Leggi e principi contabili | I261: 9000
C262: Vincoli derivanti da trasferimenti | I262: 0
C263: Vincoli derivanti dalla contrazione di mutui | I263: 0
C264: Vincoli formalmente attribuiti dall'ente | I264: 0
C265: Altri vincoli da specificare | I265: 0
H266: C) Totale parte vincolata | I266: =SUM(I261:I265) -> 9000
B267: Parte destinata agli investimenti | I267: 0
H268: D) Totale destinata agli investimenti | I268: 83826.98
H269: E) Totale parte disponibile ( E=A-B-C-D ) | I269: =I254-I259-I266-I268 -> 138992.38
A272: 3) Fondo pluriennale vincolato
A274: Il principio della competenza potenziata prevede che il “Fondo pluriennale vincolato” sia uno strumento di rappresentazione della programmazione e previsione delle spese, sia correnti che di investimento, che evidenzi con trasparenza ed attendibilità il procedimento di impiego delle risorse acquisite dall’ente che richiedono un periodo di tempo ultrannuale per il loro effettivo impiego e utilizzo per le finalità programmate e previste.
A275: Attuamente il Fondo pluriennale iscritto nel bilancio di previsione è il seguente:
D277: =[5]PAREGGIO!A4 -> F. V. SPESE CORRENTI | G277: =[5]PAREGGIO!C4 -> 21426.62
D278: =[5]PAREGGIO!A5 -> F. V. SPESE INVESTIMENTO | G278: =[5]PAREGGIO!C5 -> 373709.63
A280: 4) Elenco degli interventi programmati per spese di investimento finanziati col ricorso al debito e con le risorse disponibili
B282: =[5]SPESA!F451 -> SISTEMAZIONE ARCHIVIO - | G282: =[5]SPESA!J451 -> 2965 | H282: =[5]SPESA!K451 -> 0 | I282: =[5]SPESA!L451 -> 0
B283: =[5]SPESA!F457 -> MANUTENZIONE STRAORDINARIA IMMOBILI E BENI DEMANIALI | G283: =[5]SPESA!J457 -> 38731.46 | H283: =[5]SPESA!K457 -> 48500 | I283: =[5]SPESA!L457 -> 48500
B284: =[5]SPESA!F458 -> RECUPERO PALAZZO RE/MERIS - 3LOTTO (6000 campanili) | G284: =[5]SPESA!J458 -> 636569.54 | H284: =[5]SPESA!K458 -> 90000 | I284: =[5]SPESA!L458 -> 0
B285: =[5]SPESA!F470 -> PROGETTO SICUREZZA IN GESTIONE ASSOCIATA | G285: =[5]SPESA!J470 -> 153000 | H285: =[5]SPESA!K470 -> 0 | I285: =[5]SPESA!L470 -> 0
B286: =[5]SPESA!F481 -> FONDO PER BANDO RECUPERO FACCIATE CENTRO STORICO | G286: =[5]SPESA!J481 -> 2000 | H286: =[5]SPESA!K481 -> 2000 | I286: =[5]SPESA!L481 -> 2000
B287: =[5]SPESA!F494 -> MANUTENZIONE STRAORDINARIA CENTRO SPORTIVO | G287: =[5]SPESA!J494 -> 44148 | H287: =[5]SPESA!K494 -> 22500 | I287: =[5]SPESA!L494 -> 22500
B288: =[5]SPESA!F524 -> OPERE `FONDO AREE VERDI` L.R. 2/2005 e s.m.i. | G288: =[5]SPESA!J524 -> 13295.63 | H288: =[5]SPESA!K524 -> 5000 | I288: =[5]SPESA!L524 -> 5000
B289: =[5]SPESA!F544 -> ELIMINAZ. BARRIERE ARCHITET. (10% ONERI) | G289: =[5]SPESA!J544 -> 5000 | H289: =[5]SPESA!K544 -> 5000 | I289: =[5]SPESA!L544 -> 5000
B290: =[5]SPESA!F550 -> FONDO FINANZIAMENTO OPERE RELIGIOSE/SOCIALI (ONERI) | G290: =[5]SPESA!J550 -> 2000 | H290: =[5]SPESA!K550 -> 2000 | I290: =[5]SPESA!L550 -> 2000
A292: 5) Oneri e gli impegni finanziari stimati e stanziati in bilancio, derivanti da contratti relativi a strumenti finanziari derivati o da contratti di finanziamento che includono una componente derivata
A294: L’ente non ha in essere contratti rientranti nelle tipologie sopra specificate.
A296: 6) Elenco dei propri enti ed organismi strumentali, precisando che i relativi bilanci consuntivi sono consultabili nel proprio sito internet fermo restando quanto previsto per gli enti locali dall'art. 172, comma 1, lettera a) del Tuel
A298: L’ente non possiede organismi strumentali.
A300: 7) Elenco delle garanzie principali o sussidiarie prestate dall'ente a favore di enti e di altri soggetti ai sensi delle leggi vigenti
A302: L'ente non ha prestato garanzie a favore di enti o di altri soggetti.
A304: 8) Elenco delle partecipazioni possedute con l'indicazione della relativa quota percentuale
A306: L’ente ha approvato con deliberazione della Giunta comunale il piano di razionalizzazione delle società partecipate ai sensi dell’art.1 comma 611 e seguenti della Legge n.190/2014, atto a cui si rimanda per maggiori dettagli; di seguito saranno elencate soltanto le società a partecipazione diretta:
B308: Denominazione | E308: Funzioni attribuite e attività svolte | H308: % Partec.
B309: Uniacque spa | E309: SERVIZIO IDRICO INTEGRATO | H309: 0.11
B310: Valcavallina servizi S.R.L. | E310: SERVIZIO RACCOLTA TRASPORTO E SMALTIMENTO RIFIUTI | H310: 0.43
A312: 9) Altre informazioni riguardanti le previsioni, richieste dalla legge o necessarie per l'interpretazione del bilancio
A314: Si rinvia al contenuto del Documento unico di programmazione 2016-2018 e agli allegati al bilancio di previsione 2016-2018.
